[Event "Live Chess"]
[Site "Chess.com"]
[Date "2024.06.01"]
[Round "-"]
[White "koekoekoe"]
[Black "McFim"]
[Result "0-1"]
[WhiteElo "1974"]
[BlackElo "1640"]
[TimeControl "300"]
[EndTime "15:32:41 PDT"]
[Termination "McFim won by checkmate"]

1. d4 {[%clk 0:04:59]} 1... d5 {[%clk 0:04:57.7]} 2. Bf4 {[%clk 0:04:58.3]} 2...
Nf6 {[%clk 0:04:55.9]} 3. e3 {[%clk 0:04:57.9]} 3... Bf5 {[%clk 0:04:53.8]} 4.
c4 {[%clk 0:04:57.3]} 4... c6 {[%clk 0:04:50.6]} 5. Nc3 {[%clk 0:04:56.6]} 5...
a6 {[%clk 0:04:47.5]} 6. Nf3 {[%clk 0:04:56]} 6... e6 {[%clk 0:04:44.9]} 7. cxd5
{[%clk 0:04:55]} 7... exd5 {[%clk 0:04:43.4]} 8. Bd3 {[%clk 0:04:53.4]} 8...
Bxd3 {[%clk 0:04:41.5]} 9. Qxd3 {[%clk 0:04:53.3]} 9... Bd6 {[%clk 0:04:40.7]}
10. Bg3 {[%clk 0:04:51.9]} 10... O-O {[%clk 0:04:38.8]} 11. O-O {[%clk
0:04:51.4]} 11... Bxg3 {[%clk 0:04:34.6]} 12. hxg3 {[%clk 0:04:50.2]} 12... Qd6
{[%clk 0:04:33.8]} 13. Ne5 {[%clk 0:04:46]} 13... Nbd7 {[%clk 0:04:32.5]} 14.
Nxd7 {[%clk 0:04:43.3]} 14... Qxd7 {[%clk 0:04:29.5]} 15. b4 {[%clk 0:04:41.8]}
15... Rfe8 {[%clk 0:04:20.6]} 16. Na4 {[%clk 0:04:40.4]} 16... Qe7 {[%clk
0:04:17.1]} 17. Rfc1 {[%clk 0:04:33.2]} 17... Ne4 {[%clk 0:04:09.4]} 18. Nc5
{[%clk 0:04:29.3]} 18... Rab8 {[%clk 0:04:04.5]} 19. Nxe4 {[%clk 0:04:21.9]}
19... Qxe4 {[%clk 0:04:00.6]} 20. Qxe4 {[%clk 0:04:21]} 20... Rxe4 {[%clk
0:03:59.8]} 21. a4 {[%clk 0:04:19.4]} 21... Re6 {[%clk 0:03:55.4]} 22. b5 {[%clk
0:04:18.6]} 22... axb5 {[%clk 0:03:54]} 23. axb5 {[%clk 0:04:18.5]} 23... g5
{[%clk 0:03:48.9]} 24. Rab1 {[%clk 0:04:10.7]} 24... Rd8 {[%clk 0:03:46]} 25.
bxc6 {[%clk 0:04:07.8]} 25... bxc6 {[%clk 0:03:44.8]} 26. Rb6 {[%clk 0:04:05.9]}
26... Rdd6 {[%clk 0:03:43.5]} 27. Rb7 {[%clk 0:04:00.7]} 27... Kg7 {[%clk
0:03:41.8]} 28. Ra1 {[%clk 0:03:58]} 28... h5 {[%clk 0:03:39.4]} 29. Raa7 {[%clk
0:03:55]} 29... Rf6 {[%clk 0:03:37.1]} 30. Kf1 {[%clk 0:03:54]} 30... Rde6
{[%clk 0:03:32.4]} 31. Ke2 {[%clk 0:03:51.1]} 31... g4 {[%clk 0:03:29.8]} 32. f3
{[%clk 0:03:46.4]} 32... gxf3+ {[%clk 0:03:25.4]} 33. gxf3 {[%clk 0:03:46.3]}
33... Rf5 {[%clk 0:03:18.8]} 34. Rc7 {[%clk 0:03:38]} 34... Rg6 {[%clk
0:03:16.1]} 35. Ra6 {[%clk 0:03:31.2]} 35... Rff6 {[%clk 0:03:10.6]} 36. Kf2
{[%clk 0:03:29.3]} 36... Re6 {[%clk 0:03:04.1]} 37. Rd7 {[%clk 0:03:27]} 37...
Ref6 {[%clk 0:02:58.6]} 38. Raa7 {[%clk 0:03:22.5]} 38... Rg5 {[%clk 0:02:55.1]}
39. Rd8 {[%clk 0:03:15.8]} 39... Rgf5 {[%clk 0:02:52.5]} 40. f4 {[%clk
0:03:13.6]} 40... Rg6 {[%clk 0:02:51.6]} 41. Raa8 {[%clk 0:03:09.2]} 41... Rh6
{[%clk 0:02:28]} 42. Rac8 {[%clk 0:03:05.7]} 42... Rff6 {[%clk 0:02:25.2]} 43.
Rg8+ {[%clk 0:03:01]} 43... Kh7 {[%clk 0:02:23.6]} 44. Kf3 {[%clk 0:02:55.6]}
44... Rfg6 {[%clk 0:02:13.2]} 45. Rgf8 {[%clk 0:02:50]} 45... Rf6 {[%clk
0:02:11.9]} 46. Rh8+ {[%clk 0:02:48.9]} 46... Kg6 {[%clk 0:02:09.9]} 47. Rcg8+
{[%clk 0:02:48.6]} 47... Kf5 {[%clk 0:02:07.6]} 48. Rg5+ {[%clk 0:02:46.8]}
48... Ke6 {[%clk 0:02:04.6]} 49. Re5+ {[%clk 0:02:44.2]} 49... Kd7 {[%clk
0:02:01.8]} 50. Rhe8 {[%clk 0:02:35]} 50... Re6 {[%clk 0:01:55.3]} 51. R8xe6
{[%clk 0:02:22.5]} 51... fxe6 {[%clk 0:01:50.9]} 52. f5 {[%clk 0:02:20.6]} 52...
exf5 {[%clk 0:01:43.5]} 53. Rxf5 {[%clk 0:02:20.5]} 53... Ke6 {[%clk 0:01:42.3]}
54. Kf4 {[%clk 0:02:18.3]} 54... h4 {[%clk 0:01:37.5]} 55. Re5+ {[%clk
0:02:11.3]} 55... Kf6 {[%clk 0:01:29.7]} 56. gxh4 {[%clk 0:02:09.9]} 56... Rxh4+
{[%clk 0:01:27.8]} 57. Kg3 {[%clk 0:02:09.4]} 57... Rh1 {[%clk 0:01:19.6]} 58.
Re8 {[%clk 0:02:06.2]} 58... Re1 {[%clk 0:01:15.8]} 59. Kf2 {[%clk 0:02:04.8]}
59... Rc1 {[%clk 0:01:13.7]} 60. Rh8 {[%clk 0:02:02.6]} 60... Kf5 {[%clk
0:01:09.3]} 61. Rh6 {[%clk 0:01:58.6]} 61... Ke4 {[%clk 0:01:07.4]} 62. Re6+
{[%clk 0:01:55.4]} 62... Kd3 {[%clk 0:01:05.9]} 63. Re8 {[%clk 0:01:52.5]} 63...
Rc2+ {[%clk 0:01:02.7]} 64. Kf3 {[%clk 0:01:51.4]} 64... Rc1 {[%clk 0:01:00]}
65. Re6 {[%clk 0:01:46.2]} 65... Rf1+ {[%clk 0:00:55.5]} 66. Kg2 {[%clk
0:01:44.6]} 66... Rc1 {[%clk 0:00:54.8]} 67. Kf2 {[%clk 0:01:42.6]} 67... c5
{[%clk 0:00:49.1]} 68. dxc5 {[%clk 0:01:37.7]} 68... Rxc5 {[%clk 0:00:46.8]} 69.
Ra6 {[%clk 0:01:33.7]} 69... Ke4 {[%clk 0:00:40.5]} 70. Re6+ {[%clk 0:01:27.7]}
70... Kd3 {[%clk 0:00:38.8]} 71. Ra6 {[%clk 0:01:25.5]} 71... Ke4 {[%clk
0:00:37.1]} 72. Ra4+ {[%clk 0:01:23.4]} 72... Rc4 {[%clk 0:00:34.1]} 73. Ra8
{[%clk 0:01:18]} 73... Rc2+ {[%clk 0:00:32.7]} 74. Ke1 {[%clk 0:01:14.2]} 74...
Kxe3 {[%clk 0:00:31.8]} 75. Re8+ {[%clk 0:01:12.1]} 75... Kd3 {[%clk 0:00:30.7]}
76. Kd1 {[%clk 0:01:11.4]} 76... Rh2 {[%clk 0:00:29.5]} 77. Re1 {[%clk
0:01:04.2]} 77... Ra2 {[%clk 0:00:27]} 78. Re8 {[%clk 0:00:58.6]} 78... Ra1#
{[%clk 0:00:25.1]} 0-1

[Event "Live Chess"]
[Site "Chess.com"]
[Date "2024.06.01"]
[Round "-"]
[White "Crowded_House"]
[Black "NebodarMatevich"]
[Result "0-1"]
[WhiteElo "1723"]
[BlackElo "1576"]
[TimeControl "300"]
[EndTime "15:32:42 PDT"]
[Termination "NebodarMatevich won by checkmate"]

1. d4 {[%clk 0:04:58.7]} 1... Nf6 {[%clk 0:04:58.6]} 2. Bg5 {[%clk 0:04:57.6]}
2... g6 {[%clk 0:04:57.6]} 3. c3 {[%clk 0:04:55.9]} 3... Bg7 {[%clk 0:04:57]} 4.
Nf3 {[%clk 0:04:53.4]} 4... O-O {[%clk 0:04:56.1]} 5. e3 {[%clk 0:04:51.5]} 5...
d6 {[%clk 0:04:51.9]} 6. Nbd2 {[%clk 0:04:50]} 6... a5 {[%clk 0:04:50.9]} 7. Bd3
{[%clk 0:04:47.4]} 7... Na6 {[%clk 0:04:50.4]} 8. O-O {[%clk 0:04:45]} 8... h6
{[%clk 0:04:43.7]} 9. Bh4 {[%clk 0:04:43.2]} 9... g5 {[%clk 0:04:41.4]} 10. Bg3
{[%clk 0:04:41.2]} 10... Nd7 {[%clk 0:04:40.6]} 11. h3 {[%clk 0:04:31.4]} 11...
c5 {[%clk 0:04:38.2]} 12. dxc5 {[%clk 0:04:20.1]} 12... Naxc5 {[%clk 0:04:36.9]}
13. Bc2 {[%clk 0:04:17.6]} 13... e5 {[%clk 0:04:32.8]} 14. Ne4 {[%clk
0:04:09.8]} 14... Nxe4 {[%clk 0:04:26.5]} 15. Bxe4 {[%clk 0:04:08.3]} 15... f5
{[%clk 0:04:26.2]} 16. Bd5+ {[%clk 0:04:03.4]} 16... Kh8 {[%clk 0:04:25.7]} 17.
Qc2 {[%clk 0:03:51.9]} 17... Nc5 {[%clk 0:04:22.8]} 18. Rad1 {[%clk 0:03:36.3]}
18... e4 {[%clk 0:04:21.8]} 19. Nd4 {[%clk 0:03:29.3]} 19... Qf6 {[%clk
0:04:03.4]} 20. a3 {[%clk 0:03:10.7]} 20... Rb8 {[%clk 0:03:49]} 21. Nb3 {[%clk
0:03:01]} 21... Nd3 {[%clk 0:03:47.3]} 22. Bc4 {[%clk 0:02:52]} 22... f4 {[%clk
0:03:27]} 23. Bh2 {[%clk 0:02:29.2]} 23... f3 {[%clk 0:03:21.6]} 24. Bxd3 {[%clk
0:02:19.8]} 24... exd3 {[%clk 0:03:19]} 25. Qxd3 {[%clk 0:02:14.9]} 25... fxg2
{[%clk 0:03:18.1]} 26. Rfe1 {[%clk 0:01:55.7]} 26... Qxf2# {[%clk 0:03:13.8]}
0-1

[Event "Live Chess"]
[Site "Chess.com"]
[Date "2024.06.01"]
[Round "-"]
[White "lyricalschemes"]
[Black "hapehansen"]
[Result "1-0"]
[WhiteElo "2472"]
[BlackElo "2266"]
[TimeControl "300"]
[EndTime "15:32:51 PDT"]
[Termination "lyricalschemes won by resignation"]

1. e4 {[%clk 0:04:56.7]} 1... d5 {[%clk 0:04:56.8]} 2. exd5 {[%clk 0:04:55.4]}
2... Qxd5 {[%clk 0:04:56.7]} 3. Nc3 {[%clk 0:04:53.7]} 3... Qa5 {[%clk
0:04:56.3]} 4. Bc4 {[%clk 0:04:51.8]} 4... Nf6 {[%clk 0:04:55]} 5. d3 {[%clk
0:04:49.4]} 5... g6 {[%clk 0:04:47.3]} 6. Ne2 {[%clk 0:04:48]} 6... Bg7 {[%clk
0:04:45.4]} 7. O-O {[%clk 0:04:47.2]} 7... O-O {[%clk 0:04:42.8]} 8. Bd2 {[%clk
0:04:46]} 8... c6 {[%clk 0:04:41.5]} 9. Nd5 {[%clk 0:04:38.9]} 9... Qd8 {[%clk
0:04:38.6]} 10. Nxf6+ {[%clk 0:04:37.9]} 10... Bxf6 {[%clk 0:04:36.9]} 11. Bc3
{[%clk 0:04:37.5]} 11... Nd7 {[%clk 0:04:34.8]} 12. Re1 {[%clk 0:04:29.5]} 12...
Bxc3 {[%clk 0:04:29.5]} 13. Nxc3 {[%clk 0:04:27.3]} 13... Nf6 {[%clk 0:04:27.5]}
14. Qf3 {[%clk 0:04:24.1]} 14... Bg4 {[%clk 0:04:07.6]} 15. Qg3 {[%clk
0:04:21.1]} 15... Rc8 {[%clk 0:03:52.3]} 16. h3 {[%clk 0:04:15.8]} 16... Bf5
{[%clk 0:03:48.5]} 17. Rad1 {[%clk 0:04:03]} 17... Qc7 {[%clk 0:03:43.9]} 18.
Qh4 {[%clk 0:03:49.7]} 18... Kg7 {[%clk 0:03:30.6]} 19. Ne2 {[%clk 0:03:43]}
19... b5 {[%clk 0:03:10.8]} 20. Bb3 {[%clk 0:03:40.4]} 20... a5 {[%clk
0:02:33.8]} 21. a3 {[%clk 0:03:34.7]} 21... a4 {[%clk 0:02:20.7]} 22. Ba2 {[%clk
0:03:32.4]} 22... Rcd8 {[%clk 0:01:57.8]} 23. Ng3 {[%clk 0:03:28.2]} 23... Bc8
{[%clk 0:01:52.8]} 24. Qg5 {[%clk 0:03:18.7]} 24... Rfe8 {[%clk 0:01:36.7]} 25.
Re2 {[%clk 0:02:46.4]} 25... h6 {[%clk 0:01:34.2]} 26. Qd2 {[%clk 0:02:39.2]}
26... Nd5 {[%clk 0:01:31.5]} 27. Rde1 {[%clk 0:02:33.7]} 27... Nf4 {[%clk
0:01:29.2]} 28. Re4 {[%clk 0:02:27.3]} 28... e5 {[%clk 0:01:25]} 29. Qc3 {[%clk
0:02:24]} 29... f6 {[%clk 0:01:21.8]} 30. b3 {[%clk 0:02:07.1]} 30... axb3
{[%clk 0:01:18.9]} 31. Bxb3 {[%clk 0:01:59.4]} 31... Qd6 {[%clk 0:01:09.4]} 32.
R4e3 {[%clk 0:01:47.9]} 32... Nd5 {[%clk 0:01:05.3]} 33. Bxd5 {[%clk 0:01:32.5]}
33... Qxd5 {[%clk 0:01:05.2]} 34. Ne4 {[%clk 0:01:30]} 34... Bf5 {[%clk
0:00:57.8]} 35. Nc5 {[%clk 0:01:27.1]} 35... Ra8 {[%clk 0:00:54.3]} 36. f4
{[%clk 0:01:22]} 36... Rad8 {[%clk 0:00:42.2]} 37. fxe5 {[%clk 0:01:16.2]} 37...
fxe5 {[%clk 0:00:40.3]} 38. Rxe5 {[%clk 0:01:15]} 38... Rxe5 {[%clk 0:00:39.8]}
39. Rxe5 {[%clk 0:01:12.3]} 39... Qd4+ {[%clk 0:00:38.8]} 40. Qxd4 {[%clk
0:01:11.5]} 40... Rxd4 {[%clk 0:00:38.6]} 41. Rxf5 {[%clk 0:01:11]} 1-0

[Event "Live Chess"]
[Site "Chess.com"]
[Date "2024.06.01"]
[Round "-"]
[White "RichardABates"]
[Black "Ferrarifan27"]
[Result "1-0"]
[WhiteElo "2305"]
[BlackElo "2110"]
[TimeControl "300"]
[EndTime "15:32:58 PDT"]
[Termination "RichardABates won by resignation"]

1. d4 {[%clk 0:04:56.8]} 1... Nf6 {[%clk 0:04:51.5]} 2. Nf3 {[%clk 0:04:55.3]}
2... d5 {[%clk 0:04:50.2]} 3. c4 {[%clk 0:04:53.9]} 3... e6 {[%clk 0:04:48.3]}
4. g3 {[%clk 0:04:52.7]} 4... Be7 {[%clk 0:04:47.1]} 5. Bg2 {[%clk 0:04:51.4]}
5... O-O {[%clk 0:04:46.6]} 6. O-O {[%clk 0:04:50.4]} 6... c6 {[%clk 0:04:45.9]}
7. Qc2 {[%clk 0:04:47.9]} 7... b6 {[%clk 0:04:44]} 8. Nbd2 {[%clk 0:04:46.6]}
8... Na6 {[%clk 0:04:41.4]} 9. a3 {[%clk 0:04:44.6]} 9... Bb7 {[%clk 0:04:39.6]}
10. e4 {[%clk 0:04:42.4]} 10... dxe4 {[%clk 0:04:38.9]} 11. Nxe4 {[%clk
0:04:41.2]} 11... Nxe4 {[%clk 0:04:37.7]} 12. Qxe4 {[%clk 0:04:40]} 12... Qc8
{[%clk 0:04:29]} 13. Ne5 {[%clk 0:04:36.6]} 13... Nb8 {[%clk 0:04:23.8]} 14. b4
{[%clk 0:04:34]} 14... f6 {[%clk 0:04:22.4]} 15. Nd3 {[%clk 0:04:31.8]} 15...
Qd7 {[%clk 0:04:18.7]} 16. c5 {[%clk 0:04:28.5]} 16... Ba6 {[%clk 0:04:15.9]}
17. Re1 {[%clk 0:04:24.5]} 17... e5 {[%clk 0:04:12.2]} 18. d5 {[%clk 0:04:17.3]}
18... Bb7 {[%clk 0:04:04.6]} 19. d6 {[%clk 0:04:11.6]} 19... Bd8 {[%clk
0:04:01.8]} 20. Bb2 {[%clk 0:04:09.1]} 20... a5 {[%clk 0:03:56.1]} 21. b5 {[%clk
0:04:06.3]} 21... Ra7 {[%clk 0:03:52.4]} 22. Qc4+ {[%clk 0:04:01.2]} 22... Kh8
{[%clk 0:03:49.7]} 23. a4 {[%clk 0:03:47]} 23... cxb5 {[%clk 0:03:48]} 24. Qxb5
{[%clk 0:03:43.6]} 24... Qxb5 {[%clk 0:03:44]} 25. axb5 {[%clk 0:03:42.2]} 25...
Bxg2 {[%clk 0:03:43.3]} 26. Kxg2 {[%clk 0:03:41.3]} 26... bxc5 {[%clk
0:03:42.6]} 27. Nxc5 {[%clk 0:03:39.6]} 27... Bb6 {[%clk 0:03:39.3]} 28. Na4
{[%clk 0:03:30.7]} 28... Nd7 {[%clk 0:03:37.9]} 29. Rac1 {[%clk 0:03:27.3]}
29... Rd8 {[%clk 0:03:24.5]} 30. Rc6 {[%clk 0:03:25.2]} 30... Rb7 {[%clk
0:03:18.6]} 31. f4 {[%clk 0:03:18.3]} 31... exf4 {[%clk 0:03:15]} 32. gxf4
{[%clk 0:03:16.9]} 32... Ba7 {[%clk 0:03:03.1]} 33. Re7 {[%clk 0:03:12.4]} 33...
Kg8 {[%clk 0:02:57.8]} 34. Rc7 {[%clk 0:03:09.4]} 34... Rxb5 {[%clk 0:02:46.7]}
35. Rxa7 {[%clk 0:03:01.2]} 35... Rb4 {[%clk 0:02:45.6]} 36. Rexd7 {[%clk
0:02:55]} 36... Rxd7 {[%clk 0:02:43.1]} 37. Rxd7 {[%clk 0:02:53.4]} 37... Rxa4
{[%clk 0:02:42.4]} 38. Rb7 {[%clk 0:02:50.3]} 38... Ra2 {[%clk 0:02:37.5]} 39.
d7 {[%clk 0:02:47.5]} 1-0

[Event "Live Chess"]
[Site "Chess.com"]
[Date "2024.06.01"]
[Round "-"]
[White "LL220284LL"]
[Black "TedUdale"]
[Result "1-0"]
[WhiteElo "2506"]
[BlackElo "2116"]
[TimeControl "300"]
[EndTime "15:33:13 PDT"]
[Termination "LL220284LL won by checkmate"]

1. g3 {[%clk 0:04:57.2]} 1... d5 {[%clk 0:04:59.1]} 2. Bg2 {[%clk 0:04:56.4]}
2... Nf6 {[%clk 0:04:58]} 3. Nf3 {[%clk 0:04:55.8]} 3... c6 {[%clk 0:04:55.5]}
4. O-O {[%clk 0:04:55.2]} 4... Bf5 {[%clk 0:04:54]} 5. b3 {[%clk 0:04:54.4]}
5... e6 {[%clk 0:04:53.4]} 6. Bb2 {[%clk 0:04:49.6]} 6... Nbd7 {[%clk
0:04:52.3]} 7. e3 {[%clk 0:04:49.2]} 7... Be7 {[%clk 0:04:50.9]} 8. c4 {[%clk
0:04:48.8]} 8... O-O {[%clk 0:04:49.9]} 9. Nc3 {[%clk 0:04:48]} 9... Rc8 {[%clk
0:04:48.4]} 10. d4 {[%clk 0:04:46]} 10... b6 {[%clk 0:04:45.6]} 11. Rc1 {[%clk
0:04:44.5]} 11... c5 {[%clk 0:04:41.2]} 12. cxd5 {[%clk 0:04:43.1]} 12... Nxd5
{[%clk 0:04:39.9]} 13. Nxd5 {[%clk 0:04:41.5]} 13... exd5 {[%clk 0:04:39.2]} 14.
dxc5 {[%clk 0:04:37.9]} 14... Nxc5 {[%clk 0:04:38.3]} 15. Nd4 {[%clk 0:04:36.2]}
15... Bg6 {[%clk 0:04:35.2]} 16. Qg4 {[%clk 0:04:05.6]} 16... h5 {[%clk
0:04:16.4]} 17. Qd1 {[%clk 0:03:51.4]} 17... Qd7 {[%clk 0:04:06.7]} 18. Ba3
{[%clk 0:03:45.2]} 18... Nd3 {[%clk 0:03:49.8]} 19. Rxc8 {[%clk 0:03:42.5]}
19... Rxc8 {[%clk 0:03:47.7]} 20. Bxe7 {[%clk 0:03:41.5]} 20... Qxe7 {[%clk
0:03:43.4]} 21. Bxd5 {[%clk 0:03:40]} 21... Rc1 {[%clk 0:03:34.5]} 22. Qd2
{[%clk 0:03:28.4]} 22... Rxf1+ {[%clk 0:03:33.6]} 23. Kxf1 {[%clk 0:03:28.3]}
23... Ne5 {[%clk 0:03:28.2]} 24. Nc6 {[%clk 0:03:22.8]} 24... Nxc6 {[%clk
0:03:10.3]} 25. Bxc6 {[%clk 0:03:22.7]} 25... Qc5 {[%clk 0:02:58.5]} 26. Bf3
{[%clk 0:03:17.1]} 26... Bf5 {[%clk 0:02:53.9]} 27. Kg2 {[%clk 0:03:13.4]} 27...
Qc8 {[%clk 0:02:50.2]} 28. Bxh5 {[%clk 0:03:06.9]} 28... Bh3+ {[%clk 0:02:48]}
29. Kg1 {[%clk 0:03:03.5]} 29... Qc6 {[%clk 0:02:45.8]} 30. f3 {[%clk
0:02:51.8]} 30... Qb5 {[%clk 0:02:44.5]} 31. Qd1 {[%clk 0:02:30.1]} 31... Qxh5
{[%clk 0:02:39.6]} 32. g4 {[%clk 0:02:29.3]} 32... Qh4 {[%clk 0:02:34.7]} 33. b4
{[%clk 0:02:22.5]} 33... f5 {[%clk 0:02:30.1]} 34. gxf5 {[%clk 0:01:16.7]} 34...
Qg5+ {[%clk 0:02:18.6]} 35. Kf2 {[%clk 0:01:16]} 35... Qg2+ {[%clk 0:02:11.9]}
36. Ke1 {[%clk 0:01:15.2]} 36... Bxf5 {[%clk 0:02:02.5]} 37. Qd8+ {[%clk
0:01:13.6]} 37... Kh7 {[%clk 0:01:54]} 38. Qh4+ {[%clk 0:01:12]} 38... Kg6
{[%clk 0:01:52.2]} 39. e4 {[%clk 0:01:10.4]} 39... Qg1+ {[%clk 0:01:46.9]} 40.
Ke2 {[%clk 0:01:08.2]} 40... Qg2+ {[%clk 0:01:43.9]} 41. Ke3 {[%clk 0:01:05.6]}
41... Be6 {[%clk 0:01:41.7]} 42. Qh8 {[%clk 0:00:59.9]} 42... Qg1+ {[%clk
0:01:37.3]} 43. Kd3 {[%clk 0:00:53.7]} 43... Qf1+ {[%clk 0:01:35.9]} 44. Ke3
{[%clk 0:00:52.8]} 44... Qe1+ {[%clk 0:01:31.5]} 45. Kf4 {[%clk 0:00:50.8]}
45... Qd2+ {[%clk 0:01:27.2]} 46. Ke5 {[%clk 0:00:49.2]} 46... Bf7 {[%clk
0:01:21.3]} 47. Qh3 {[%clk 0:00:42]} 47... Qc3+ {[%clk 0:01:16.8]} 48. Kf4
{[%clk 0:00:38.3]} 48... Qd2+ {[%clk 0:01:12]} 49. Ke5 {[%clk 0:00:37.2]} 49...
Qg5+ {[%clk 0:01:01.8]} 50. Kd6 {[%clk 0:00:35.6]} 50... Qf6+ {[%clk 0:00:55.8]}
51. Kd7 {[%clk 0:00:33.8]} 51... Qe5 {[%clk 0:00:48.8]} 52. Qg4+ {[%clk
0:00:31.5]} 52... Kh7 {[%clk 0:00:45.5]} 53. Qh4+ {[%clk 0:00:30.1]} 53... Kg8
{[%clk 0:00:42.8]} 54. Qd8+ {[%clk 0:00:28.9]} 54... Kh7 {[%clk 0:00:42.3]} 55.
Qh4+ {[%clk 0:00:28.1]} 55... Kg6 {[%clk 0:00:42]} 56. Qg4+ {[%clk 0:00:26.7]}
56... Qg5 {[%clk 0:00:39.1]} 57. Qh3 {[%clk 0:00:23.4]} 57... Qd2+ {[%clk
0:00:35.4]} 58. Kc7 {[%clk 0:00:22.1]} 58... Qc3+ {[%clk 0:00:33.1]} 59. Kb7
{[%clk 0:00:21]} 59... Qxb4 {[%clk 0:00:29.2]} 60. Qf5+ {[%clk 0:00:20.1]} 60...
Kh6 {[%clk 0:00:25]} 61. Qxf7 {[%clk 0:00:20]} 61... Qd6 {[%clk 0:00:21]} 62.
Kxa7 {[%clk 0:00:18.4]} 62... b5 {[%clk 0:00:18.9]} 63. Qd5 {[%clk 0:00:16.1]}
63... Qa3+ {[%clk 0:00:17.5]} 64. Kb6 {[%clk 0:00:14.7]} 64... b4 {[%clk
0:00:16.7]} 65. Qe6+ {[%clk 0:00:13.5]} 65... Kh7 {[%clk 0:00:15.9]} 66. Qf5+
{[%clk 0:00:12.6]} 66... Kg8 {[%clk 0:00:15.2]} 67. Qc8+ {[%clk 0:00:11.7]}
67... Kh7 {[%clk 0:00:14.7]} 68. Qf5+ {[%clk 0:00:11.2]} 68... Kg8 {[%clk
0:00:14.2]} 69. e5 {[%clk 0:00:10.8]} 69... Qe3+ {[%clk 0:00:11.8]} 70. Kc6
{[%clk 0:00:08.9]} 70... Qc3+ {[%clk 0:00:11]} 71. Kd7 {[%clk 0:00:08.2]} 71...
Qc5 {[%clk 0:00:09]} 72. e6 {[%clk 0:00:07.3]} 72... Qb5+ {[%clk 0:00:07.6]} 73.
Qxb5 {[%clk 0:00:05.8]} 73... b3 {[%clk 0:00:06.9]} 74. Qxb3 {[%clk 0:00:05.3]}
74... Kh7 {[%clk 0:00:06.4]} 75. e7 {[%clk 0:00:05.2]} 75... g6 {[%clk
0:00:06.3]} 76. e8=Q {[%clk 0:00:04.8]} 76... Kh6 {[%clk 0:00:06.2]} 77. Qeg8
{[%clk 0:00:04.4]} 77... Kg5 {[%clk 0:00:06.1]} 78. Qe3+ {[%clk 0:00:03.7]}
78... Kf6 {[%clk 0:00:05.5]} 79. Qge6+ {[%clk 0:00:03.1]} 79... Kg7 {[%clk
0:00:04.7]} 80. Q3e5+ {[%clk 0:00:03]} 80... Kh6 {[%clk 0:00:04.6]} 81. Qg8
{[%clk 0:00:02.3]} 81... g5 {[%clk 0:00:01.8]} 82. Qgh8+ {[%clk 0:00:02.2]}
82... Kg6 {[%clk 0:00:01]} 83. Qef6# {[%clk 0:00:02.1]} 1-0

[Event "Live Chess"]
[Site "Chess.com"]
[Date "2024.06.01"]
[Round "-"]
[White "OurKnightAtTheOpera"]
[Black "katoma"]
[Result "1-0"]
[WhiteElo "1995"]
[BlackElo "2036"]
[TimeControl "300"]
[EndTime "15:33:19 PDT"]
[Termination "OurKnightAtTheOpera won on time"]

1. e4 {[%clk 0:04:58.4]} 1... c5 {[%clk 0:04:57.6]} 2. d4 {[%clk 0:04:49.8]}
2... cxd4 {[%clk 0:04:56.1]} 3. c3 {[%clk 0:04:49.3]} 3... d3 {[%clk 0:04:55.1]}
4. Bxd3 {[%clk 0:04:48.2]} 4... Nc6 {[%clk 0:04:53.2]} 5. Nf3 {[%clk 0:04:46.9]}
5... d6 {[%clk 0:04:46.7]} 6. h3 {[%clk 0:04:35]} 6... Nf6 {[%clk 0:04:42.3]} 7.
c4 {[%clk 0:04:34.2]} 7... g6 {[%clk 0:04:38.4]} 8. Nc3 {[%clk 0:04:33.5]} 8...
Bg7 {[%clk 0:04:37]} 9. Be3 {[%clk 0:04:32.9]} 9... O-O {[%clk 0:04:20.8]} 10.
Qd2 {[%clk 0:04:28.1]} 10... a5 {[%clk 0:04:10.5]} 11. a3 {[%clk 0:04:17.9]}
11... a4 {[%clk 0:04:04.8]} 12. O-O {[%clk 0:04:07.3]} 12... Nd7 {[%clk
0:04:01.8]} 13. Nd5 {[%clk 0:03:57.2]} 13... Nc5 {[%clk 0:03:59.2]} 14. Bc2
{[%clk 0:03:49.7]} 14... Bxb2 {[%clk 0:03:49.3]} 15. Ra2 {[%clk 0:03:47.9]}
15... Bg7 {[%clk 0:03:45.5]} 16. Rb1 {[%clk 0:03:40.6]} 16... Na5 {[%clk
0:03:11.2]} 17. Bxc5 {[%clk 0:02:52.7]} 17... dxc5 {[%clk 0:03:08]} 18. Qe3
{[%clk 0:02:46.3]} 18... Nxc4 {[%clk 0:02:23.5]} 19. Qxc5 {[%clk 0:02:45.4]}
19... Nd6 {[%clk 0:02:05]} 20. Rd1 {[%clk 0:02:27]} 20... Be6 {[%clk 0:01:57.5]}
21. Ng5 {[%clk 0:02:15.1]} 21... Bxd5 {[%clk 0:01:52.8]} 22. Rxd5 {[%clk
0:02:11]} 22... Qc8 {[%clk 0:01:46]} 23. Qb4 {[%clk 0:01:54.8]} 23... h6 {[%clk
0:01:18.2]} 24. Nf3 {[%clk 0:01:49.3]} 24... Qc3 {[%clk 0:01:16.7]} 25. Qxc3
{[%clk 0:01:17.7]} 25... Bxc3 {[%clk 0:01:14.2]} 26. Bd3 {[%clk 0:01:11.5]}
26... Rfc8 {[%clk 0:01:01.7]} 27. e5 {[%clk 0:01:06.9]} 27... Nc4 {[%clk
0:00:56.8]} 28. Rd7 {[%clk 0:00:52.7]} 28... Nxe5 {[%clk 0:00:52.5]} 29. Nxe5
{[%clk 0:00:37.2]} 29... Bxe5 {[%clk 0:00:50.4]} 30. g3 {[%clk 0:00:35.9]} 30...
Rc7 {[%clk 0:00:39.2]} 31. Rxc7 {[%clk 0:00:27.8]} 31... Bxc7 {[%clk 0:00:38]}
32. Rb2 {[%clk 0:00:26.4]} 32... b6 {[%clk 0:00:34.8]} 33. Bb5 {[%clk
0:00:19.9]} 33... Bd6 {[%clk 0:00:33.3]} 34. Bc4 {[%clk 0:00:15.9]} 34... Bxa3
{[%clk 0:00:31.8]} 35. Rxb6 {[%clk 0:00:15.1]} 35... Bd6 {[%clk 0:00:28.6]} 36.
Rb1 {[%clk 0:00:14.1]} 36... a3 {[%clk 0:00:27.3]} 37. Ba2 {[%clk 0:00:13.4]}
37... Kg7 {[%clk 0:00:24.4]} 38. Kf1 {[%clk 0:00:12.6]} 38... Rc8 {[%clk
0:00:20.7]} 39. h4 {[%clk 0:00:07.3]} 39... Rc2 {[%clk 0:00:16.7]} 40. Ra1
{[%clk 0:00:07.2]} 40... Be5 {[%clk 0:00:13.6]} 41. Bb3 {[%clk 0:00:03.9]} 41...
Rxf2+ {[%clk 0:00:06.6]} 42. Kxf2 {[%clk 0:00:02.7]} 42... Bxa1 {[%clk
0:00:05.6]} 43. Ba2 {[%clk 0:00:02.6]} 43... Kf6 {[%clk 0:00:03.4]} 44. Kf3
{[%clk 0:00:02.5]} 44... e5 {[%clk 0:00:02.4]} 45. g4 {[%clk 0:00:02.4]} 45...
Ke7 {[%clk 0:00:00.8]} 46. Ke3 {[%clk 0:00:02.3]} 1-0